[Event "Late-Titled-Tuesday-Blitz-March-26-2024"]
[Site "Chess.com"]
[Date "2024.03.26"]
[Round "4"]
[White "Juicy_Fork"]
[Black "ContrVersia"]
[Result "0-1"]
[WhiteElo "2565"]
[BlackElo "2933"]
[TimeControl "180+1"]
[EndTime "14:40:14 PDT"]
[Termination "ContrVersia won on time"]

1. e4 {[%clk 0:03:00.9]} 1... c5 {[%clk 0:02:58.2]} 2. Nf3 {[%clk 0:02:59.8]}
2... a6 {[%clk 0:02:58.5]} 3. d4 {[%clk 0:02:48.5]} 3... cxd4 {[%clk 0:02:59.4]}
4. Nxd4 {[%clk 0:02:48.7]} 4... Nf6 {[%clk 0:02:59.8]} 5. Nc3 {[%clk 0:02:48.8]}
5... e5 {[%clk 0:03:00.1]} 6. Nb3 {[%clk 0:02:43.8]} 6... Bb4 {[%clk 0:03:00]}
7. Bd3 {[%clk 0:02:41]} 7... Bxc3+ {[%clk 0:02:59]} 8. bxc3 {[%clk 0:02:41]}
8... d6 {[%clk 0:02:59.9]} 9. O-O {[%clk 0:02:38.1]} 9... Qc7 {[%clk 0:02:58.9]}
10. c4 {[%clk 0:02:18.8]} 10... Be6 {[%clk 0:02:58.5]} 11. Qe2 {[%clk
0:02:15.5]} 11... Nbd7 {[%clk 0:02:57.8]} 12. Ba3 {[%clk 0:02:05.7]} 12... Rc8
{[%clk 0:02:57.5]} 13. Rad1 {[%clk 0:02:02.8]} 13... O-O {[%clk 0:02:39]} 14. f4
{[%clk 0:01:47.1]} 14... Rfe8 {[%clk 0:02:38.6]} 15. f5 {[%clk 0:01:14.1]} 15...
Bxc4 {[%clk 0:02:38.1]} 16. Bxd6 {[%clk 0:00:59.8]} 16... Bxd3 {[%clk
0:02:35.1]} 17. Rxd3 {[%clk 0:00:31.2]} 17... Qxc2 {[%clk 0:02:34.9]} 18. Qf3
{[%clk 0:00:30]} 18... Qxa2 {[%clk 0:01:58.5]} 19. g4 {[%clk 0:00:26.9]} 19...
Rc4 {[%clk 0:01:57.5]} 20. Nd2 {[%clk 0:00:10.9]} 20... Rd4 {[%clk 0:01:53.5]}
21. g5 {[%clk 0:00:07.5]} 21... Rxd3 {[%clk 0:00:57.9]} 22. Qxd3 {[%clk
0:00:08.4]} 22... Nh5 {[%clk 0:00:58.4]} 23. g6 {[%clk 0:00:02.2]} 23... hxg6
{[%clk 0:00:54.7]} 24. fxg6 {[%clk 0:00:02.2]} 24... fxg6 {[%clk 0:00:55.3]} 25.
Nc4 {[%clk 0:00:02.6]} 25... Nf4 {[%clk 0:00:50.3]} 26. Rxf4 {[%clk 0:00:02]}
26... exf4 {[%clk 0:00:50.6]} 27. Qd5+ {[%clk 0:00:02.5]} 27... Kh7 {[%clk
0:00:50.4]} 28. Qf7 {[%clk 0:00:01.7]} 28... Qb1+ {[%clk 0:00:46.1]} 29. Kf2
{[%clk 0:00:01.3]} 29... Qc2+ {[%clk 0:00:46.1]} 30. Kf1 {[%clk 0:00:01.3]}
30... Qxe4 {[%clk 0:00:42.2]} 0-1

[Event "Late-Titled-Tuesday-Blitz-March-26-2024"]
[Site "Chess.com"]
[Date "2024.03.26"]
[Round "4"]
[White "rezamahdavi2008"]
[Black "Andreikka"]
[Result "1-0"]
[WhiteElo "2863"]
[BlackElo "2989"]
[TimeControl "180+1"]
[EndTime "14:40:21 PDT"]
[Termination "rezamahdavi2008 won on time"]

1. e4 {[%clk 0:03:00.9]} 1... c5 {[%clk 0:02:53.8]} 2. Nf3 {[%clk 0:03:01.1]}
2... e6 {[%clk 0:02:51.2]} 3. d4 {[%clk 0:03:01.3]} 3... cxd4 {[%clk 0:02:51.7]}
4. Nxd4 {[%clk 0:03:02.2]} 4... a6 {[%clk 0:02:51.1]} 5. c4 {[%clk 0:03:00.4]}
5... Qc7 {[%clk 0:02:48.1]} 6. Nc3 {[%clk 0:02:54.9]} 6... Nf6 {[%clk
0:02:48.2]} 7. Be2 {[%clk 0:02:40.1]} 7... d6 {[%clk 0:02:48.1]} 8. O-O {[%clk
0:02:36.2]} 8... Nbd7 {[%clk 0:02:48.5]} 9. f4 {[%clk 0:02:33.5]} 9... Be7
{[%clk 0:02:46.7]} 10. Be3 {[%clk 0:02:26.2]} 10... b6 {[%clk 0:02:46.2]} 11.
Bf3 {[%clk 0:02:24.5]} 11... Bb7 {[%clk 0:02:46]} 12. Rc1 {[%clk 0:02:24.1]}
12... O-O {[%clk 0:02:44.6]} 13. Qe2 {[%clk 0:02:19.9]} 13... Rfe8 {[%clk
0:02:43.7]} 14. Rfe1 {[%clk 0:02:18.2]} 14... Rac8 {[%clk 0:02:43.4]} 15. b3
{[%clk 0:02:15.9]} 15... Nc5 {[%clk 0:02:34.5]} 16. Bf2 {[%clk 0:02:16]} 16...
Bf8 {[%clk 0:02:27]} 17. Rcd1 {[%clk 0:02:13]} 17... g6 {[%clk 0:02:22.6]} 18.
e5 {[%clk 0:01:58.5]} 18... dxe5 {[%clk 0:02:22.3]} 19. fxe5 {[%clk 0:01:56.1]}
19... Bxf3 {[%clk 0:02:11.2]} 20. Nxf3 {[%clk 0:01:44.9]} 20... Ng4 {[%clk
0:02:04.7]} 21. b4 {[%clk 0:01:42.5]} 21... Nd7 {[%clk 0:01:56.8]} 22. Ne4
{[%clk 0:01:42.8]} 22... Bxb4 {[%clk 0:01:49.2]} 23. h3 {[%clk 0:01:28.2]} 23...
Bxe1 {[%clk 0:01:43.4]} 24. Bxe1 {[%clk 0:01:28]} 24... Qxc4 {[%clk 0:01:30.6]}
25. Qxc4 {[%clk 0:01:21.1]} 25... Rxc4 {[%clk 0:01:29.8]} 26. Nd6 {[%clk
0:01:21.8]} 26... Ne3 {[%clk 0:01:27]} 27. Rd3 {[%clk 0:01:19.6]} 27... Re7
{[%clk 0:00:48.1]} 28. Rxe3 {[%clk 0:01:13.5]} 28... Rc1 {[%clk 0:00:43.2]} 29.
Kh2 {[%clk 0:01:13.7]} 29... h6 {[%clk 0:00:39]} 30. Bd2 {[%clk 0:01:10.8]}
30... Rc2 {[%clk 0:00:37.7]} 31. Rd3 {[%clk 0:01:11.2]} 31... Kg7 {[%clk
0:00:33.3]} 32. Be3 {[%clk 0:01:06.7]} 32... Nc5 {[%clk 0:00:30.7]} 33. Ra3
{[%clk 0:01:04.2]} 33... a5 {[%clk 0:00:27.6]} 34. Nd4 {[%clk 0:01:04.4]} 34...
Rb2 {[%clk 0:00:20.9]} 35. Nc6 {[%clk 0:01:04.3]} 35... Rd7 {[%clk 0:00:17.9]}
36. Bxc5 {[%clk 0:01:00.6]} 36... bxc5 {[%clk 0:00:17.8]} 37. Rxa5 {[%clk
0:01:01.3]} 37... Rc2 {[%clk 0:00:17.5]} 38. Ne8+ {[%clk 0:01:01]} 38... Kf8
{[%clk 0:00:02.2]} 39. Nf6 {[%clk 0:01:01.9]} 1-0

[Event "Late-Titled-Tuesday-Blitz-March-26-2024"]
[Site "Chess.com"]
[Date "2024.03.26"]
[Round "4"]
[White "rikchessmx"]
[Black "GlavkonVVS"]
[Result "0-1"]
[WhiteElo "2302"]
[BlackElo "2651"]
[TimeControl "180+1"]
[EndTime "14:40:26 PDT"]
[Termination "GlavkonVVS won by resignation"]

1. e4 {[%clk 0:02:57.4]} 1... Nf6 {[%clk 0:03:00.9]} 2. Nc3 {[%clk 0:02:56]}
2... d5 {[%clk 0:03:00.7]} 3. exd5 {[%clk 0:02:56.3]} 3... Nxd5 {[%clk
0:03:01.1]} 4. Bc4 {[%clk 0:02:57.1]} 4... Nb6 {[%clk 0:03:01]} 5. Bb3 {[%clk
0:02:56.7]} 5... c5 {[%clk 0:03:01.6]} 6. d3 {[%clk 0:02:56.9]} 6... Nc6 {[%clk
0:03:01.9]} 7. h3 {[%clk 0:02:51.1]} 7... Bf5 {[%clk 0:02:57.6]} 8. Qf3 {[%clk
0:02:50.6]} 8... e6 {[%clk 0:02:56]} 9. Nge2 {[%clk 0:02:50]} 9... Be7 {[%clk
0:02:55.1]} 10. Be3 {[%clk 0:02:47.2]} 10... O-O {[%clk 0:02:54.4]} 11. O-O
{[%clk 0:02:44.2]} 11... a5 {[%clk 0:02:53.7]} 12. a4 {[%clk 0:02:41.9]} 12...
Bg6 {[%clk 0:02:46.1]} 13. Nb5 {[%clk 0:02:38.6]} 13... Rc8 {[%clk 0:02:45]} 14.
Nf4 {[%clk 0:02:27.1]} 14... Qd7 {[%clk 0:02:35.3]} 15. Qg4 {[%clk 0:02:16.7]}
15... Bf5 {[%clk 0:02:29.9]} 16. Qf3 {[%clk 0:02:11.9]} 16... Nb4 {[%clk
0:02:26.3]} 17. g4 {[%clk 0:02:00.4]} 17... Bg6 {[%clk 0:02:24.9]} 18. Qg3
{[%clk 0:01:56.4]} 18... c4 {[%clk 0:02:08.6]} 19. dxc4 {[%clk 0:01:56.2]} 19...
Nxc4 {[%clk 0:02:08.6]} 20. Bc1 {[%clk 0:01:52.1]} 20... Bxc2 {[%clk 0:02:05.3]}
21. Bxc2 {[%clk 0:01:40.3]} 21... Nxc2 {[%clk 0:02:05.1]} 22. b3 {[%clk
0:01:40.6]} 22... Nxa1 {[%clk 0:02:01.9]} 23. bxc4 {[%clk 0:01:38.6]} 23... Rxc4
{[%clk 0:01:58.2]} 24. Bb2 {[%clk 0:01:36.3]} 24... Rxa4 {[%clk 0:01:52.5]} 25.
Nc3 {[%clk 0:01:31.1]} 25... Rxf4 {[%clk 0:01:23.4]} 26. Qxf4 {[%clk 0:01:28.1]}
26... Nb3 {[%clk 0:01:23.6]} 27. Rd1 {[%clk 0:01:24.3]} 27... Qc6 {[%clk
0:01:21.8]} 28. Ne4 {[%clk 0:01:20.6]} 28... Nc5 {[%clk 0:01:20.4]} 29. Nxc5
{[%clk 0:01:05.6]} 29... Qxc5 {[%clk 0:01:20.3]} 30. Rc1 {[%clk 0:01:03.6]}
30... Qb4 {[%clk 0:01:17.2]} 31. Qxb4 {[%clk 0:00:58.3]} 31... Bxb4 {[%clk
0:01:16.3]} 32. Rc7 {[%clk 0:00:58.4]} 32... b6 {[%clk 0:01:15]} 33. Bd4 {[%clk
0:00:53.2]} 33... Bc5 {[%clk 0:01:13.2]} 34. Bxc5 {[%clk 0:00:52.8]} 34... bxc5
{[%clk 0:01:13.7]} 35. Rxc5 {[%clk 0:00:52.5]} 35... Ra8 {[%clk 0:01:14.3]} 36.
Rc1 {[%clk 0:00:52.3]} 36... a4 {[%clk 0:01:14.4]} 37. Ra1 {[%clk 0:00:51.6]}
37... a3 {[%clk 0:01:15]} 38. Ra2 {[%clk 0:00:52.1]} 38... f6 {[%clk 0:01:14.3]}
39. Kf1 {[%clk 0:00:52.5]} 39... Kf7 {[%clk 0:01:11.9]} 40. Ke2 {[%clk
0:00:53.4]} 40... Kg6 {[%clk 0:01:12.2]} 41. f4 {[%clk 0:00:52.9]} 41... Ra4
{[%clk 0:01:11.8]} 42. Ke3 {[%clk 0:00:52.9]} 42... h5 {[%clk 0:01:10.3]} 43.
Kf3 {[%clk 0:00:51.7]} 43... h4 {[%clk 0:01:06.9]} 44. Ke3 {[%clk 0:00:50.9]}
44... e5 {[%clk 0:01:06.3]} 45. fxe5 {[%clk 0:00:46.7]} 45... fxe5 {[%clk
0:01:06.5]} 46. Kf3 {[%clk 0:00:46.5]} 46... Kg5 {[%clk 0:01:06.7]} 47. Ke3
{[%clk 0:00:46.2]} 47... e4 {[%clk 0:01:04.1]} 48. Kd2 {[%clk 0:00:38]} 48...
Kf4 {[%clk 0:01:03.7]} 49. Kc3 {[%clk 0:00:38.4]} 49... e3 {[%clk 0:01:02.7]}
50. Kb3 {[%clk 0:00:39.3]} 50... Ra8 {[%clk 0:01:01.4]} 51. Kc3 {[%clk
0:00:38.3]} 51... Kf3 {[%clk 0:01:01.1]} 52. Kd3 {[%clk 0:00:38.3]} 52... Rd8+
{[%clk 0:01:01]} 53. Kc4 {[%clk 0:00:38.4]} 53... e2 {[%clk 0:00:56]} 54. Rxa3+
{[%clk 0:00:37.9]} 54... Kf2 {[%clk 0:00:55.4]} 55. Ra2 {[%clk 0:00:37.2]} 55...
Kf1 {[%clk 0:00:55.1]} 0-1

[Event "Late-Titled-Tuesday-Blitz-March-26-2024"]
[Site "Chess.com"]
[Date "2024.03.26"]
[Round "4"]
[White "Nekoo04"]
[Black "bazar-wokzal"]
[Result "0-1"]
[WhiteElo "2379"]
[BlackElo "2569"]
[TimeControl "180+1"]
[EndTime "14:40:26 PDT"]
[Termination "bazar-wokzal won by resignation"]

1. d4 {[%clk 0:02:45.3]} 1... Nf6 {[%clk 0:02:59.5]} 2. c4 {[%clk 0:02:42.2]}
2... Nc6 {[%clk 0:02:59.2]} 3. Nf3 {[%clk 0:02:38.3]} 3... e6 {[%clk 0:02:52.3]}
4. d5 {[%clk 0:02:35.3]} 4... exd5 {[%clk 0:02:51.9]} 5. cxd5 {[%clk 0:02:36.2]}
5... Bb4+ {[%clk 0:02:51.9]} 6. Nc3 {[%clk 0:02:20.3]} 6... Ne7 {[%clk
0:02:51.4]} 7. Bg5 {[%clk 0:01:54.7]} 7... Nexd5 {[%clk 0:02:45.5]} 8. Qb3
{[%clk 0:01:29.9]} 8... Bxc3+ {[%clk 0:02:39]} 9. bxc3 {[%clk 0:01:29.6]} 9...
h6 {[%clk 0:02:37.2]} 10. e4 {[%clk 0:01:21.6]} 10... hxg5 {[%clk 0:02:34.6]}
11. exd5 {[%clk 0:01:21.6]} 11... Qe7+ {[%clk 0:02:33.6]} 12. Be2 {[%clk
0:01:19.5]} 12... O-O {[%clk 0:02:23.1]} 13. c4 {[%clk 0:01:11.1]} 13... Re8
{[%clk 0:02:21.9]} 14. Qd3 {[%clk 0:00:50.3]} 14... Qb4+ {[%clk 0:02:11.2]} 15.
Nd2 {[%clk 0:00:43.9]} 15... d6 {[%clk 0:02:07]} 16. O-O {[%clk 0:00:41.8]}
16... Bf5 {[%clk 0:02:06.1]} 17. Qxf5 {[%clk 0:00:36.2]} 17... Qxd2 {[%clk
0:02:06]} 18. Bf3 {[%clk 0:00:28.5]} 18... Re5 {[%clk 0:02:04.9]} 19. Qb1 {[%clk
0:00:21.9]} 19... b6 {[%clk 0:02:03.4]} 20. h3 {[%clk 0:00:21.5]} 20... Rae8
{[%clk 0:02:02.1]} 21. Rd1 {[%clk 0:00:20.2]} 21... Qf4 {[%clk 0:02:01.3]} 22.
a4 {[%clk 0:00:16.2]} 22... g4 {[%clk 0:01:58.3]} 23. hxg4 {[%clk 0:00:14.8]}
23... Nxg4 {[%clk 0:01:58.6]} 24. Bxg4 {[%clk 0:00:14.6]} 24... Qxg4 {[%clk
0:01:58.5]} 25. a5 {[%clk 0:00:14.7]} 25... Rg5 {[%clk 0:01:56.6]} 26. g3 {[%clk
0:00:13.8]} 26... Qh3 {[%clk 0:01:51.6]} 27. Qd3 {[%clk 0:00:12.8]} 27... Rh5
{[%clk 0:01:25.5]} 28. Qf3 {[%clk 0:00:09.2]} 28... Rf5 {[%clk 0:01:25.2]} 29.
Qg2 {[%clk 0:00:06]} 29... Qxg2+ {[%clk 0:01:24.3]} 30. Kxg2 {[%clk 0:00:06.9]}
30... Re2 {[%clk 0:01:24.3]} 31. Rf1 {[%clk 0:00:07.2]} 31... Rc2 {[%clk
0:01:22.1]} 32. axb6 {[%clk 0:00:05.4]} 32... axb6 {[%clk 0:01:22.3]} 33. Ra4
{[%clk 0:00:05]} 33... Re5 {[%clk 0:01:17]} 34. Rh1 {[%clk 0:00:04.7]} 34... g6
{[%clk 0:01:16.8]} 35. Ra8+ {[%clk 0:00:04.6]} 35... Kg7 {[%clk 0:01:17]} 36.
Rhh8 {[%clk 0:00:04]} 36... Rxc4 {[%clk 0:01:15.6]} 37. Rag8+ {[%clk 0:00:04.2]}
37... Kf6 {[%clk 0:01:15.5]} 38. Rh7 {[%clk 0:00:04.2]} 38... Rf5 {[%clk
0:01:09.5]} 39. Rd8 {[%clk 0:00:03.4]} 39... Rc2 {[%clk 0:01:07.8]} 40. Rd7
{[%clk 0:00:02.5]} 40... Rcxf2+ {[%clk 0:01:07.5]} 41. Kh3 {[%clk 0:00:03.2]}
41... Rh5+ {[%clk 0:01:02.8]} 42. Kg4 {[%clk 0:00:02.8]} 42... Rxh7 {[%clk
0:01:02.4]} 0-1

[Event "Late-Titled-Tuesday-Blitz-March-26-2024"]
[Site "Chess.com"]
[Date "2024.03.26"]
[Round "4"]
[White "anasta10"]
[Black "KorolDimitriy75"]
[Result "0-1"]
[WhiteElo "2558"]
[BlackElo "2412"]
[TimeControl "180+1"]
[EndTime "14:40:29 PDT"]
[Termination "KorolDimitriy75 won by resignation"]

1. Nf3 {[%clk 0:02:57.1]} 1... c5 {[%clk 0:03:00.2]} 2. g3 {[%clk 0:02:55.2]}
2... g6 {[%clk 0:03:00.2]} 3. Bg2 {[%clk 0:02:55.7]} 3... Bg7 {[%clk 0:03:00.6]}
4. O-O {[%clk 0:02:56.6]} 4... Nc6 {[%clk 0:03:00.7]} 5. c4 {[%clk 0:02:57.3]}
5... Nh6 {[%clk 0:03:00.9]} 6. Nc3 {[%clk 0:02:57.3]} 6... Nf5 {[%clk 0:03:01]}
7. e3 {[%clk 0:02:57.6]} 7... h5 {[%clk 0:03:00.9]} 8. h4 {[%clk 0:02:57.2]}
8... a6 {[%clk 0:03:00.7]} 9. Rb1 {[%clk 0:02:56.6]} 9... Rb8 {[%clk 0:03:00.4]}
10. d4 {[%clk 0:02:51.6]} 10... cxd4 {[%clk 0:02:56.9]} 11. exd4 {[%clk
0:02:52.5]} 11... Ncxd4 {[%clk 0:02:36.4]} 12. Bf4 {[%clk 0:02:51.6]} 12... d6
{[%clk 0:02:16.8]} 13. Re1 {[%clk 0:02:51.4]} 13... O-O {[%clk 0:02:09.3]} 14.
Nd5 {[%clk 0:02:50.5]} 14... Re8 {[%clk 0:02:01.3]} 15. Nxd4 {[%clk 0:02:44.1]}
15... Bxd4 {[%clk 0:01:50.6]} 16. Bg5 {[%clk 0:02:43.3]} 16... Be6 {[%clk
0:01:43.3]} 17. Be4 {[%clk 0:02:16.3]} 17... Bxd5 {[%clk 0:01:29]} 18. cxd5
{[%clk 0:02:13]} 18... Qb6 {[%clk 0:01:18]} 19. Bxf5 {[%clk 0:02:10.7]} 19...
Bxf2+ {[%clk 0:01:12.2]} 20. Kg2 {[%clk 0:02:10.9]} 20... Bxe1 {[%clk 0:01:12]}
21. Qxe1 {[%clk 0:02:06]} 21... gxf5 {[%clk 0:00:57.2]} 22. Qe2 {[%clk 0:02:06]}
22... Qd4 {[%clk 0:00:53.2]} 23. Re1 {[%clk 0:01:56.6]} 23... Qe4+ {[%clk
0:00:35]} 24. Qxe4 {[%clk 0:01:56.8]} 24... fxe4 {[%clk 0:00:35.9]} 25. Rxe4
{[%clk 0:01:56.8]} 25... f6 {[%clk 0:00:35.8]} 26. Bd2 {[%clk 0:01:52.2]} 26...
Kf7 {[%clk 0:00:35.6]} 27. Bc3 {[%clk 0:01:52.6]} 27... Rbc8 {[%clk 0:00:34.9]}
28. Kf3 {[%clk 0:01:50.3]} 28... Rc5 {[%clk 0:00:29.4]} 29. Rd4 {[%clk
0:01:49.6]} 29... Rec8 {[%clk 0:00:25.2]} 30. Rd3 {[%clk 0:01:47.4]} 30... b5
{[%clk 0:00:23]} 31. a3 {[%clk 0:01:45.4]} 31... Rc4 {[%clk 0:00:22.2]} 32. Re3
{[%clk 0:01:42.8]} 32... Ra8 {[%clk 0:00:14.5]} 33. Rd3 {[%clk 0:01:29.8]} 33...
a5 {[%clk 0:00:14]} 34. Bd2 {[%clk 0:01:29.7]} 34... b4 {[%clk 0:00:12.8]} 35.
axb4 {[%clk 0:01:30.6]} 35... axb4 {[%clk 0:00:13.2]} 36. Rb3 {[%clk 0:01:31.2]}
36... Ra5 {[%clk 0:00:13.2]} 37. Rd3 {[%clk 0:01:28.8]} 37... Rb5 {[%clk
0:00:12]} 38. Be1 {[%clk 0:01:15.6]} 38... Rc2 {[%clk 0:00:10.2]} 39. b3 {[%clk
0:01:13.7]} 39... Rcc5 {[%clk 0:00:09.5]} 40. Ke4 {[%clk 0:01:13.5]} 40... Kg6
{[%clk 0:00:09.4]} 41. g4 {[%clk 0:01:00.5]} 41... hxg4 {[%clk 0:00:09.2]} 42.
Kf4 {[%clk 0:00:58.5]} 42... Rxd5 {[%clk 0:00:08.5]} 43. Re3 {[%clk 0:00:57]}
43... Re5 {[%clk 0:00:08.4]} 44. Bd2 {[%clk 0:00:56.1]} 44... Rxe3 {[%clk
0:00:08.1]} 45. Bxe3 {[%clk 0:00:57]} 45... f5 {[%clk 0:00:08.3]} 0-1

[Event "Late-Titled-Tuesday-Blitz-March-26-2024"]
[Site "Chess.com"]
[Date "2024.03.26"]
[Round "4"]
[White "Savagelittlemole"]
[Black "Nechitaylo_Nikita"]
[Result "1-0"]
[WhiteElo "2524"]
[BlackElo "2357"]
[TimeControl "180+1"]
[EndTime "14:40:31 PDT"]
[Termination "Savagelittlemole won by resignation"]

1. e4 {[%clk 0:02:57.5]} 1... c5 {[%clk 0:03:00.3]} 2. Ne2 {[%clk 0:02:57.4]}
2... d6 {[%clk 0:03:00.8]} 3. g3 {[%clk 0:02:58.1]} 3... g6 {[%clk 0:03:01]} 4.
Bg2 {[%clk 0:02:58.7]} 4... Bg7 {[%clk 0:03:01.7]} 5. c3 {[%clk 0:02:59]} 5...
Nc6 {[%clk 0:03:02.4]} 6. d4 {[%clk 0:02:59.7]} 6... cxd4 {[%clk 0:03:03]} 7.
cxd4 {[%clk 0:03:00.6]} 7... Nf6 {[%clk 0:03:03.6]} 8. O-O {[%clk 0:03:00.5]}
8... O-O {[%clk 0:03:04.2]} 9. Nbc3 {[%clk 0:03:00.8]} 9... Bd7 {[%clk
0:02:54.5]} 10. h3 {[%clk 0:03:00.9]} 10... a6 {[%clk 0:02:51.3]} 11. Be3 {[%clk
0:03:01]} 11... b5 {[%clk 0:02:51.6]} 12. Rc1 {[%clk 0:02:59.4]} 12... e6 {[%clk
0:02:41.8]} 13. f4 {[%clk 0:02:57.6]} 13... b4 {[%clk 0:02:31.2]} 14. Na4 {[%clk
0:02:47.8]} 14... Qa5 {[%clk 0:02:02.3]} 15. b3 {[%clk 0:02:41.4]} 15... Ne7
{[%clk 0:01:52.6]} 16. Nb2 {[%clk 0:02:36.4]} 16... Bb5 {[%clk 0:01:44.8]} 17.
Rf2 {[%clk 0:02:26.9]} 17... d5 {[%clk 0:01:26.6]} 18. e5 {[%clk 0:02:16.2]}
18... Ne4 {[%clk 0:01:26.4]} 19. Bxe4 {[%clk 0:02:14.8]} 19... dxe4 {[%clk
0:01:27.3]} 20. Nc4 {[%clk 0:02:10.9]} 20... Bxc4 {[%clk 0:01:17]} 21. Rxc4
{[%clk 0:01:34]} 21... Qxa2 {[%clk 0:01:01.4]} 22. Nc3 {[%clk 0:01:30.1]} 22...
Qa3 {[%clk 0:00:52.4]} 23. Ra2 {[%clk 0:01:27.6]} 23... Nd5 {[%clk 0:00:43.3]}
24. Rxa3 {[%clk 0:01:21.2]} 24... Nxe3 {[%clk 0:00:43]} 25. Qe2 {[%clk
0:01:15.3]} 25... Nxc4 {[%clk 0:00:39]} 26. Ra4 {[%clk 0:01:13.9]} 26... bxc3
{[%clk 0:00:16.2]} 27. Rxc4 {[%clk 0:01:13.6]} 27... Rfc8 {[%clk 0:00:14.8]} 28.
Qxe4 {[%clk 0:01:12.6]} 28... Rab8 {[%clk 0:00:13]} 29. Qc2 {[%clk 0:01:10]}
29... Rxc4 {[%clk 0:00:07.5]} 30. bxc4 {[%clk 0:01:10.2]} 30... Bf8 {[%clk
0:00:04.3]} 31. Qxc3 {[%clk 0:01:09.8]} 31... Bb4 {[%clk 0:00:04.5]} 32. Qb3
{[%clk 0:01:06]} 32... a5 {[%clk 0:00:05]} 33. c5 {[%clk 0:01:03.6]} 33... Rc8
{[%clk 0:00:01.8]} 34. Qa4 {[%clk 0:01:01.1]} 34... Rd8 {[%clk 0:00:01.7]} 35.
c6 {[%clk 0:00:52]} 35... Rxd4 {[%clk 0:00:01.7]} 36. c7 {[%clk 0:00:52.5]}
36... Rc4 {[%clk 0:00:01.6]} 37. Qe8+ {[%clk 0:00:52.1]} 37... Kg7 {[%clk
0:00:01.6]} 38. c8=Q {[%clk 0:00:52.7]} 38... Bc5+ {[%clk 0:00:02.1]} 39. Kg2
{[%clk 0:00:51.2]} 39... Rc2+ {[%clk 0:00:02.1]} 40. Kf1 {[%clk 0:00:50.1]}
40... Rc1+ {[%clk 0:00:01.6]} 41. Ke2 {[%clk 0:00:50.2]} 41... Rc2+ {[%clk
0:00:02.1]} 42. Kd3 {[%clk 0:00:50.5]} 1-0

[Event "Late-Titled-Tuesday-Blitz-March-26-2024"]
[Site "Chess.com"]
[Date "2024.03.26"]
[Round "4"]
[White "Mikhail_Golubev"]
[Black "emeli_chess"]
[Result "0-1"]
[WhiteElo "2650"]
[BlackElo "2426"]
[TimeControl "180+1"]
[EndTime "14:40:34 PDT"]
[Termination "emeli_chess won on time"]

1. e4 {[%clk 0:03:00.9]} 1... e5 {[%clk 0:02:59.7]} 2. Nf3 {[%clk 0:03:00.8]}
2... Nc6 {[%clk 0:03:00]} 3. Bc4 {[%clk 0:03:00.6]} 3... Nf6 {[%clk 0:02:59.5]}
4. d3 {[%clk 0:03:00.6]} 4... Be7 {[%clk 0:02:57.2]} 5. Nc3 {[%clk 0:02:48.7]}
5... d6 {[%clk 0:02:57.3]} 6. h3 {[%clk 0:02:45.5]} 6... O-O {[%clk 0:02:56.2]}
7. a4 {[%clk 0:02:40.7]} 7... a5 {[%clk 0:02:46.6]} 8. O-O {[%clk 0:02:36.6]}
8... Be6 {[%clk 0:02:45.7]} 9. Be3 {[%clk 0:02:24.3]} 9... d5 {[%clk 0:02:39.8]}
10. exd5 {[%clk 0:02:20.2]} 10... Nxd5 {[%clk 0:02:40]} 11. Bb5 {[%clk
0:02:03.1]} 11... Nxe3 {[%clk 0:02:36.1]} 12. fxe3 {[%clk 0:02:03.1]} 12... f6
{[%clk 0:02:28.4]} 13. Bxc6 {[%clk 0:01:52.4]} 13... bxc6 {[%clk 0:02:27.5]} 14.
e4 {[%clk 0:01:40.1]} 14... c5 {[%clk 0:02:19.7]} 15. b3 {[%clk 0:01:38.1]}
15... Rb8 {[%clk 0:01:59.5]} 16. Qe2 {[%clk 0:01:36.4]} 16... c6 {[%clk
0:01:37.5]} 17. Kh1 {[%clk 0:01:35.8]} 17... Qd7 {[%clk 0:01:33.5]} 18. Nd1
{[%clk 0:01:31.3]} 18... c4 {[%clk 0:01:25.1]} 19. dxc4 {[%clk 0:01:25.5]} 19...
Bc5 {[%clk 0:01:23.5]} 20. Ne3 {[%clk 0:01:20.7]} 20... Bxh3 {[%clk 0:01:23.2]}
21. Rad1 {[%clk 0:01:04.8]} 21... Qe6 {[%clk 0:01:15.7]} 22. gxh3 {[%clk
0:00:17.6]} 22... Qxh3+ {[%clk 0:01:14.5]} 23. Kg1 {[%clk 0:00:17.1]} 23... Qg3+
{[%clk 0:01:12.2]} 24. Kh1 {[%clk 0:00:16.7]} 24... Qh3+ {[%clk 0:00:55.6]} 25.
Nh2 {[%clk 0:00:12.5]} 25... Qxe3 {[%clk 0:00:50.9]} 26. Qg4 {[%clk 0:00:11.9]}
26... Rbd8 {[%clk 0:00:42.2]} 27. Qe6+ {[%clk 0:00:10.5]} 27... Kh8 {[%clk
0:00:41.9]} 28. Qxc6 {[%clk 0:00:10.2]} 28... Bd4 {[%clk 0:00:35]} 29. Rd3
{[%clk 0:00:09.7]} 29... Qh6 {[%clk 0:00:32.9]} 30. Qe6 {[%clk 0:00:08.7]} 30...
Be3 {[%clk 0:00:30.4]} 31. Rfd1 {[%clk 0:00:06.9]} 31... Bf4 {[%clk 0:00:29.4]}
0-1